[Event "Titled Tuesday Blitz May 9 Early 2023"]
[White "Visakh N R"]
[Black "Adhiban, B."]
[WhiteFideId "25012223"]
[BlackFideId "5018471"]
[WhiteElo "2466"]
[BlackElo "2587"]
[Result "0-1"]
[Round "06"]
[TimeControl "180+2"]
[Date "2023.05.09"]
[WhiteClock "0:00:00"]
[BlackClock "0:00:20"]

1. Nf3 {[%clk 0:03:00]}  d6 {[%clk 0:02:36]} 2. e4 {[%clk 0:02:56]}  c5 {[%clk 0:02:33]} 3. Bb5+ {[%clk 0:02:51]}  Nd7 {[%clk 0:02:32]} 4. O-O {[%clk 0:02:48]}  Nf6 {[%clk 0:02:30]} 5. Re1 {[%clk 0:02:48]}  a6 {[%clk 0:02:30]} 6. Bf1 {[%clk 0:02:48]}  b6 {[%clk 0:02:31]} 7. c4 {[%clk 0:02:44]}  Bb7 {[%clk 0:02:30]} 8. Nc3 {[%clk 0:02:45]}  Ne5 {[%clk 0:02:30]} 9. d3 {[%clk 0:02:44]}  e6 {[%clk 0:02:27]} 10. Bf4 {[%clk 0:02:43]}  Nfd7 {[%clk 0:02:25]} 11. h3 {[%clk 0:02:41]}  Be7 {[%clk 0:02:24]} 12. Bh2 {[%clk 0:02:41]}  Nxf3+ {[%clk 0:02:20]} 13. Qxf3 {[%clk 0:02:40]}  Ne5 {[%clk 0:02:21]} 14. Qd1 {[%clk 0:02:32]}  g5 {[%clk 0:02:19]} 15. d4 {[%clk 0:02:24]}  cxd4 {[%clk 0:02:14]} 16. Qxd4 {[%clk 0:02:25]}  Bf6 {[%clk 0:02:12]} 17. Qd2 {[%clk 0:02:25]}  g4 {[%clk 0:02:03]} 18. Rad1 {[%clk 0:02:21]}  gxh3 {[%clk 0:02:02]} 19. Qxd6 {[%clk 0:02:21]}  Qxd6 {[%clk 0:01:56]} 20. Rxd6 {[%clk 0:02:20]}  Ng4 {[%clk 0:01:54]} 21. Bg3 {[%clk 0:01:19]}  hxg2 {[%clk 0:01:27]} 22. Kxg2 {[%clk 0:01:20]}  Bd8 {[%clk 0:01:23]} 23. f3 {[%clk 0:01:19]}  Nf6 {[%clk 0:01:22]} 24. Bh4 {[%clk 0:00:25]}  Rg8+ {[%clk 0:01:18]} 25. Kh1 {[%clk 0:00:24]}  Bc7 {[%clk 0:00:51]} 26. Rd2 {[%clk 0:00:23]}  Rg6 {[%clk 0:00:51]} 27. Bxf6 {[%clk 0:00:17]}  Rxf6 {[%clk 0:00:51]} 28. Bg2 {[%clk 0:00:12]}  Ke7 {[%clk 0:00:45]} 29. Red1 {[%clk 0:00:12]}  Bc6 {[%clk 0:00:45]} 30. Re2 {[%clk 0:00:11]}  Rg8 {[%clk 0:00:44]} 31. Kg1 {[%clk 0:00:11]}  Bd6 {[%clk 0:00:42]} 32. Nd5+ {[%clk 0:00:10]}  Bxd5 {[%clk 0:00:41]} 33. exd5 {[%clk 0:00:10]}  Bc5+ {[%clk 0:00:39]} 34. Kf1 {[%clk 0:00:10]}  Rh6 {[%clk 0:00:39]} 35. Red2 {[%clk 0:00:10]}  e5 {[%clk 0:00:37]} 36. a3 {[%clk 0:00:10]}  a5 {[%clk 0:00:36]} 37. d6+ {[%clk 0:00:10]}  Rxd6 {[%clk 0:00:35]} 38. Rxd6 {[%clk 0:00:10]}  Bxd6 {[%clk 0:00:36]} 39. Rd5 {[%clk 0:00:08]}  Rc8 {[%clk 0:00:36]} 40. Rb5 {[%clk 0:00:07]}  Rxc4 {[%clk 0:00:35]} 41. Bh3 {[%clk 0:00:07]}  Bc5 {[%clk 0:00:32]} 42. Bf5 {[%clk 0:00:07]}  h5 {[%clk 0:00:31]} 43. Bd3 {[%clk 0:00:06]}  Rh4 {[%clk 0:00:26]} 44. Kg2 {[%clk 0:00:05]}  Rd4 {[%clk 0:00:26]} 45. Bf5 {[%clk 0:00:04]}  Kf6 {[%clk 0:00:26]} 46. Be4 {[%clk 0:00:04]}  Kg5 {[%clk 0:00:25]} 47. Kg3 {[%clk 0:00:05]}  f5 {[%clk 0:00:25]} 48. Bc6 {[%clk 0:00:04]}  h4+ {[%clk 0:00:26]} 49. Kh3 {[%clk 0:00:04]}  Rd2 {[%clk 0:00:25]} 50. b4 {[%clk 0:00:04]}  axb4 {[%clk 0:00:25]} 51. f4+ {[%clk 0:00:04]}  Kxf4 {[%clk 0:00:22]} 52. axb4 {[%clk 0:00:03]}  Bg1 {[%clk 0:00:22]} 53. Bg2 {[%clk 0:00:03]}  e4 {[%clk 0:00:21]} 54. Kxh4 {[%clk 0:00:01]}  Rxg2 {[%clk 0:00:20]} 55. Rxf5+ {[%clk 0:00:00]}  Kxf5 {[%clk 0:00:20]} 0-1


[Site "https://www.chess.com"]

[Event "Titled Tuesday Blitz May 9 Early 2023"]
[White "Sokolovsky, Yahli"]
[Black "Hakobyan, Aram"]
[WhiteFideId "2820242"]
[BlackFideId "13306677"]
[WhiteElo "2389"]
[BlackElo "2584"]
[Result "1-0"]
[Round "06"]
[TimeControl "180+2"]
[Date "2023.05.09"]
[WhiteClock "0:00:04"]
[BlackClock "0:00:00"]

1. b3 {[%clk 0:03:00]}  e5 {[%clk 0:02:59]} 2. Bb2 {[%clk 0:03:01]}  Nc6 {[%clk 0:02:59]} 3. e3 {[%clk 0:03:02]}  d5 {[%clk 0:02:59]} 4. c4 {[%clk 0:02:59]}  d4 {[%clk 0:02:59]} 5. exd4 {[%clk 0:02:42]}  exd4 {[%clk 0:03:00]} 6. a3 {[%clk 0:02:30]}  Nf6 {[%clk 0:03:00]} 7. Bd3 {[%clk 0:02:30]}  Bd6 {[%clk 0:02:48]} 8. Ne2 {[%clk 0:02:12]}  O-O {[%clk 0:02:45]} 9. Qc2 {[%clk 0:02:03]}  Re8 {[%clk 0:02:44]} 10. h3 {[%clk 0:01:48]}  a5 {[%clk 0:02:35]} 11. O-O {[%clk 0:01:44]}  Bc5 {[%clk 0:02:17]} 12. Ng3 {[%clk 0:01:44]}  Ne5 {[%clk 0:02:13]} 13. Bf5 {[%clk 0:01:38]}  Bxf5 {[%clk 0:02:00]} 14. Qxf5 {[%clk 0:01:39]}  g6 {[%clk 0:01:55]} 15. Qc2 {[%clk 0:01:33]}  h5 {[%clk 0:01:27]} 16. d3 {[%clk 0:01:14]}  h4 {[%clk 0:01:19]} 17. Ne2 {[%clk 0:01:13]}  Ra6 {[%clk 0:00:44]} 18. Nd2 {[%clk 0:01:11]}  Ba7 {[%clk 0:00:44]} 19. Rae1 {[%clk 0:01:07]}  c5 {[%clk 0:00:43]} 20. Nf4 {[%clk 0:00:51]}  Bb8 {[%clk 0:00:42]} 21. Bc1 {[%clk 0:00:52]}  Rd6 {[%clk 0:00:24]} 22. Ne4 {[%clk 0:00:49]}  Nxe4 {[%clk 0:00:24]} 23. Rxe4 {[%clk 0:00:50]}  f5 {[%clk 0:00:20]} 24. Re2 {[%clk 0:00:49]}  g5 {[%clk 0:00:18]} 25. Nd5 {[%clk 0:00:45]}  Rde6 {[%clk 0:00:14]} 26. Rfe1 {[%clk 0:00:45]}  f4 {[%clk 0:00:14]} 27. f3 {[%clk 0:00:39]}  Qd6 {[%clk 0:00:05]} 28. Re4 {[%clk 0:00:29]}  Kf7 {[%clk 0:00:02]} 29. Bd2 {[%clk 0:00:19]}  Ng6 {[%clk 0:00:03]} 30. Rxe6 {[%clk 0:00:12]}  Rxe6 {[%clk 0:00:04]} 31. Rxe6 {[%clk 0:00:13]}  Qxe6 {[%clk 0:00:04]} 32. Bxa5 {[%clk 0:00:13]}  Qa6 {[%clk 0:00:05]} 33. b4 {[%clk 0:00:12]}  Ne5 {[%clk 0:00:05]} 34. Qe2 {[%clk 0:00:12]}  Qg6 {[%clk 0:00:05]} 35. bxc5 {[%clk 0:00:08]}  Qxd3 {[%clk 0:00:06]} 36. Qb2 {[%clk 0:00:03]}  Qd1+ {[%clk 0:00:05]} 37. Kh2 {[%clk 0:00:03]}  Nxf3+ {[%clk 0:00:01]} 38. gxf3 {[%clk 0:00:03]}  g4 {[%clk 0:00:02]} 39. Qxb7+ {[%clk 0:00:03]}  Kg6 {[%clk 0:00:03]} 40. Qc6+ {[%clk 0:00:02]}  Kh7 {[%clk 0:00:03]} 41. Qd7+ {[%clk 0:00:03]}  Kh6 {[%clk 0:00:03]} 42. Qe6+ {[%clk 0:00:03]}  Kh7 {[%clk 0:00:03]} 43. Qf7+ {[%clk 0:00:03]}  Kh6 {[%clk 0:00:03]} 44. Qf6+ {[%clk 0:00:04]}  Kh7 {[%clk 0:00:03]} 45. Qxh4+ {[%clk 0:00:04]}  Kg7 {[%clk 0:00:03]} 46. Qxg4+ {[%clk 0:00:05]}  Kf7 {[%clk 0:00:04]} 47. Qd7+ {[%clk 0:00:05]}  Kg6 {[%clk 0:00:04]} 48. Qe6+ {[%clk 0:00:06]}  Kh7 {[%clk 0:00:04]} 49. Nf6+ {[%clk 0:00:05]}  Kg7 {[%clk 0:00:05]} 50. Nh5+ {[%clk 0:00:05]}  Kh7 {[%clk 0:00:04]} 51. Nf6+ {[%clk 0:00:03]}  Kg7 {[%clk 0:00:04]} 52. Ne8+ {[%clk 0:00:02]}  Kf8 {[%clk 0:00:04]} 53. Qe1 {[%clk 0:00:02]}  Qc2+ {[%clk 0:00:04]} 54. Qd2 {[%clk 0:00:03]}  Qxd2+ {[%clk 0:00:02]} 55. Bxd2 {[%clk 0:00:04]}  Kxe8 {[%clk 0:00:02]} 56. h4 {[%clk 0:00:04]}  d3 {[%clk 0:00:02]} 57. Kg2 {[%clk 0:00:04]}  Be5 {[%clk 0:00:03]} 58. h5 {[%clk 0:00:03]}  Kf7 {[%clk 0:00:03]} 59. c6 {[%clk 0:00:03]}  Ke6 {[%clk 0:00:03]} 60. h6 {[%clk 0:00:03]}  Kd6 {[%clk 0:00:04]} 61. h7 {[%clk 0:00:03]}  Kxc6 {[%clk 0:00:04]} 62. Bxf4 {[%clk 0:00:03]}  Bh8 {[%clk 0:00:04]} 63. Be3 {[%clk 0:00:02]}  Be5 {[%clk 0:00:04]} 64. Kf2 {[%clk 0:00:02]}  Kb7 {[%clk 0:00:03]} 65. Ke1 {[%clk 0:00:02]}  Bc3+ {[%clk 0:00:03]} 66. Kd1 {[%clk 0:00:03]}  Ka6 {[%clk 0:00:03]} 67. Bf4 {[%clk 0:00:03]}  Kb7 {[%clk 0:00:04]} 68. Bd6 {[%clk 0:00:03]}  Kc6 {[%clk 0:00:04]} 69. c5 {[%clk 0:00:03]}  Kd5 {[%clk 0:00:04]} 70. f4 {[%clk 0:00:04]}  Kc4 {[%clk 0:00:00]} 71. Be5 {[%clk 0:00:04]} 1-0


[Site "https://www.chess.com"]

[Event "Titled Tuesday Blitz May 9 Early 2023"]
[White "Peng, Li Min"]
[Black "Matlakov, Maxim"]
[WhiteFideId "14112620"]
[BlackFideId "4168003"]
[WhiteElo "2436"]
[BlackElo "2666"]
[Result "0-1"]
[Round "06"]
[TimeControl "180+2"]
[Date "2023.05.09"]
[WhiteClock "0:00:03"]
[BlackClock "0:01:22"]

1. e4 {[%clk 0:03:00]}  e5 {[%clk 0:02:58]} 2. Nf3 {[%clk 0:03:01]}  Nc6 {[%clk 0:02:59]} 3. Nc3 {[%clk 0:03:01]}  Nf6 {[%clk 0:02:58]} 4. h3 {[%clk 0:03:02]}  Bb4 {[%clk 0:02:56]} 5. Nd5 {[%clk 0:03:02]}  Be7 {[%clk 0:02:55]} 6. d3 {[%clk 0:02:53]}  d6 {[%clk 0:02:55]} 7. c3 {[%clk 0:02:49]}  Nxd5 {[%clk 0:02:54]} 8. exd5 {[%clk 0:02:49]}  Nb8 {[%clk 0:02:55]} 9. d4 {[%clk 0:02:40]}  e4 {[%clk 0:02:54]} 10. Nd2 {[%clk 0:02:41]}  f5 {[%clk 0:02:54]} 11. Nc4 {[%clk 0:02:31]}  O-O {[%clk 0:02:53]} 12. g3 {[%clk 0:02:28]}  Nd7 {[%clk 0:02:52]} 13. Bg2 {[%clk 0:02:23]}  Nf6 {[%clk 0:02:50]} 14. Ne3 {[%clk 0:02:23]}  Kh8 {[%clk 0:02:50]} 15. h4 {[%clk 0:02:22]}  Bd7 {[%clk 0:02:48]} 16. c4 {[%clk 0:02:20]}  Qe8 {[%clk 0:02:48]} 17. b3 {[%clk 0:02:19]}  b5 {[%clk 0:02:48]} 18. Bd2 {[%clk 0:02:02]}  bxc4 {[%clk 0:02:48]} 19. bxc4 {[%clk 0:02:03]}  Rb8 {[%clk 0:02:47]} 20. Rb1 {[%clk 0:02:01]}  Rb6 {[%clk 0:02:44]} 21. O-O {[%clk 0:01:43]}  f4 {[%clk 0:02:42]} 22. gxf4 {[%clk 0:01:43]}  Nh5 {[%clk 0:02:42]} 23. f5 {[%clk 0:01:36]}  Nf4 {[%clk 0:02:37]} 24. Qg4 {[%clk 0:01:31]}  Nxg2 {[%clk 0:02:23]} 25. Kxg2 {[%clk 0:01:32]}  Bf6 {[%clk 0:02:21]} 26. Ba5 {[%clk 0:01:15]}  Ra6 {[%clk 0:02:19]} 27. Bxc7 {[%clk 0:01:04]}  Bxd4 {[%clk 0:02:14]} 28. Rb8 {[%clk 0:01:00]}  Qf7 {[%clk 0:02:13]} 29. Rxf8+ {[%clk 0:00:58]}  Qxf8 {[%clk 0:02:14]} 30. Qxe4 {[%clk 0:00:58]}  Bc5 {[%clk 0:02:14]} 31. Rb1 {[%clk 0:00:54]}  Bb6 {[%clk 0:02:14]} 32. Bxb6 {[%clk 0:00:49]}  axb6 {[%clk 0:02:14]} 33. Rb2 {[%clk 0:00:48]}  h6 {[%clk 0:02:13]} 34. Qd4 {[%clk 0:00:43]}  Qd8 {[%clk 0:01:55]} 35. Kg3 {[%clk 0:00:37]}  Kh7 {[%clk 0:01:42]} 36. Qf4 {[%clk 0:00:35]}  Qf6 {[%clk 0:01:41]} 37. Re2 {[%clk 0:00:32]}  Ra3 {[%clk 0:01:40]} 38. Kg2 {[%clk 0:00:32]}  Rd3 {[%clk 0:01:28]} 39. Ng4 {[%clk 0:00:18]}  Qxh4 {[%clk 0:01:28]} 40. f3 {[%clk 0:00:17]}  Rd1 {[%clk 0:01:24]} 41. Qh2 {[%clk 0:00:07]}  Qg5 {[%clk 0:01:25]} 42. f6 {[%clk 0:00:03]}  Bxg4 {[%clk 0:01:24]} 43. fxg4 {[%clk 0:00:04]}  Qxg4+ {[%clk 0:01:23]} 44. Kf2 {[%clk 0:00:04]}  Qf5+ {[%clk 0:01:22]} 45. Ke3 {[%clk 0:00:03]}  Rd3# {[%clk 0:01:22]} 0-1


[Site "https://www.chess.com"]

[Event "Titled Tuesday Blitz May 9 Early 2023"]
[White "Csonka, Balazs"]
[Black "Shimanov, Aleksandr"]
[WhiteFideId "742910"]
[BlackFideId "4198603"]
[WhiteElo "2404"]
[BlackElo "2631"]
[Result "0-1"]
[Round "06"]
[TimeControl "180+2"]
[Date "2023.05.09"]
[WhiteClock "0:00:00"]
[BlackClock "0:00:20"]

1. e4 {[%clk 0:03:00]}  c6 {[%clk 0:02:41]} 2. d4 {[%clk 0:02:53]}  d5 {[%clk 0:02:40]} 3. Nc3 {[%clk 0:02:50]}  dxe4 {[%clk 0:02:40]} 4. Nxe4 {[%clk 0:02:51]}  Nf6 {[%clk 0:02:40]} 5. Nxf6+ {[%clk 0:02:46]}  exf6 {[%clk 0:02:41]} 6. c3 {[%clk 0:02:43]}  Bd6 {[%clk 0:02:39]} 7. Bd3 {[%clk 0:02:43]}  Na6 {[%clk 0:02:39]} 8. Qc2 {[%clk 0:02:37]}  Nc7 {[%clk 0:02:38]} 9. Ne2 {[%clk 0:02:34]}  h5 {[%clk 0:02:35]} 10. O-O {[%clk 0:02:19]}  Nd5 {[%clk 0:02:31]} 11. a3 {[%clk 0:02:16]}  Kf8 {[%clk 0:02:29]} 12. c4 {[%clk 0:02:15]}  Ne7 {[%clk 0:02:29]} 13. b4 {[%clk 0:02:05]}  h4 {[%clk 0:02:24]} 14. h3 {[%clk 0:02:05]}  g6 {[%clk 0:02:20]} 15. Bb2 {[%clk 0:01:58]}  Kg7 {[%clk 0:02:20]} 16. Rad1 {[%clk 0:01:50]}  Rh5 {[%clk 0:02:10]} 17. Rfe1 {[%clk 0:01:33]}  Bxh3 {[%clk 0:01:42]} 18. gxh3 {[%clk 0:00:51]}  Qd7 {[%clk 0:01:42]} 19. f4 {[%clk 0:00:47]}  Qxh3 {[%clk 0:01:40]} 20. Kf2 {[%clk 0:00:39]}  Nf5 {[%clk 0:01:11]} 21. Bxf5 {[%clk 0:00:29]}  Qh2+ {[%clk 0:01:07]} 22. Ke3 {[%clk 0:00:20]}  Rxf5 {[%clk 0:01:08]} 23. Kd2 {[%clk 0:00:14]}  Bxf4+ {[%clk 0:01:06]} 24. Kc3 {[%clk 0:00:12]}  Bg5 {[%clk 0:00:57]} 25. Qd3 {[%clk 0:00:11]}  Re8 {[%clk 0:00:54]} 26. Nc1 {[%clk 0:00:04]}  Rxe1 {[%clk 0:00:47]} 27. Rxe1 {[%clk 0:00:05]}  Qf2 {[%clk 0:00:47]} 28. Re2 {[%clk 0:00:04]}  Qf1 {[%clk 0:00:47]} 29. Kc2 {[%clk 0:00:04]}  h3 {[%clk 0:00:40]} 30. Rh2 {[%clk 0:00:02]}  Rf2+ {[%clk 0:00:30]} 31. Rxf2 {[%clk 0:00:02]}  Qxf2+ {[%clk 0:00:31]} 32. Qe2 {[%clk 0:00:03]}  Qg1 {[%clk 0:00:30]} 33. Nd3 {[%clk 0:00:02]}  h2 {[%clk 0:00:30]} 34. Nf2 {[%clk 0:00:03]}  Bh4 {[%clk 0:00:28]} 35. Ng4 {[%clk 0:00:02]}  h1=Q {[%clk 0:00:28]} 36. d5 {[%clk 0:00:03]}  Qb1+ {[%clk 0:00:27]} 37. Kb3 {[%clk 0:00:03]}  Qh3+ {[%clk 0:00:25]} 38. Ka4 {[%clk 0:00:02]}  Qf5 {[%clk 0:00:21]} 39. Qe7 {[%clk 0:00:01]}  Qhxg4 {[%clk 0:00:21]} 40. d6 {[%clk 0:00:00]}  Qd7 {[%clk 0:00:20]} 0-1


[Site "https://www.chess.com"]

[Event "Titled Tuesday Blitz May 9 Early 2023"]
[White "Lenderman, Aleksandr"]
[Black "Kvaloy, Aksel Bu"]
[WhiteFideId "2021285"]
[BlackFideId "1528815"]
[WhiteElo "2607"]
[BlackElo "2242"]
[Result "1-0"]
[Round "06"]
[TimeControl "180+2"]
[Date "2023.05.09"]
[WhiteClock "0:01:46"]
[BlackClock "0:01:26"]

1. Nf3 {[%clk 0:03:00]}  d5 {[%clk 0:02:59]} 2. e3 {[%clk 0:03:00]}  Nf6 {[%clk 0:02:59]} 3. c4 {[%clk 0:03:00]}  e6 {[%clk 0:02:58]} 4. b3 {[%clk 0:03:00]}  c5 {[%clk 0:02:58]} 5. Bb2 {[%clk 0:03:00]}  Nc6 {[%clk 0:02:57]} 6. cxd5 {[%clk 0:03:00]}  exd5 {[%clk 0:02:57]} 7. Bb5 {[%clk 0:02:59]}  d4 {[%clk 0:02:55]} 8. exd4 {[%clk 0:02:58]}  cxd4 {[%clk 0:02:55]} 9. Nxd4 {[%clk 0:02:57]}  Bd7 {[%clk 0:02:50]} 10. Nxc6 {[%clk 0:02:55]}  bxc6 {[%clk 0:02:51]} 11. Qe2+ {[%clk 0:02:50]}  Be7 {[%clk 0:02:49]} 12. Bxf6 {[%clk 0:02:50]}  gxf6 {[%clk 0:02:45]} 13. Bd3 {[%clk 0:02:50]}  Rg8 {[%clk 0:02:41]} 14. O-O {[%clk 0:02:49]}  Bg4 {[%clk 0:02:22]} 15. Qe3 {[%clk 0:02:38]}  Qd5 {[%clk 0:02:22]} 16. Nc3 {[%clk 0:02:28]}  Qh5 {[%clk 0:02:22]} 17. Rae1 {[%clk 0:02:22]}  O-O-O {[%clk 0:02:22]} 18. Ba6+ {[%clk 0:02:20]}  Kb8 {[%clk 0:02:20]} 19. Qxe7 {[%clk 0:02:18]}  Rd7 {[%clk 0:02:13]} 20. Qb4+ {[%clk 0:02:15]}  Ka8 {[%clk 0:02:13]} 21. Be2 {[%clk 0:01:55]}  Qh3 {[%clk 0:01:27]} 22. Bxg4 {[%clk 0:01:50]}  Rxg4 {[%clk 0:01:26]} 23. Re8+ {[%clk 0:01:46]}  Rd8 {[%clk 0:01:26]} 1-0


[Site "https://www.chess.com"]

[Event "Titled Tuesday Blitz May 9 Early 2023"]
[White "Hasangatin, Ramil"]
[Black "Ibarra Jerez, Jose Carlos"]
[WhiteFideId "4122160"]
[BlackFideId "2226332"]
[WhiteElo "2279"]
[BlackElo "2638"]
[Result "1/2-1/2"]
[Round "06"]
[TimeControl "180+2"]
[Date "2023.05.09"]
[WhiteClock "0:00:04"]
[BlackClock "0:00:05"]

1. e4 {[%clk 0:03:00]}  c5 {[%clk 0:02:59]} 2. Nf3 {[%clk 0:03:01]}  e6 {[%clk 0:02:59]} 3. g3 {[%clk 0:03:00]}  Nc6 {[%clk 0:02:59]} 4. Bg2 {[%clk 0:03:00]}  Nf6 {[%clk 0:03:00]} 5. d3 {[%clk 0:03:00]}  g6 {[%clk 0:02:56]} 6. O-O {[%clk 0:02:51]}  d5 {[%clk 0:02:54]} 7. Bg5 {[%clk 0:02:38]}  dxe4 {[%clk 0:02:45]} 8. dxe4 {[%clk 0:02:14]}  Qxd1 {[%clk 0:02:44]} 9. Rxd1 {[%clk 0:02:12]}  Bg7 {[%clk 0:01:52]} 10. Nbd2 {[%clk 0:01:59]}  O-O {[%clk 0:01:50]} 11. c3 {[%clk 0:01:59]}  h6 {[%clk 0:01:49]} 12. Be3 {[%clk 0:01:58]}  b6 {[%clk 0:01:49]} 13. h3 {[%clk 0:01:49]}  Bb7 {[%clk 0:01:47]} 14. Ne1 {[%clk 0:01:33]}  Rfd8 {[%clk 0:01:46]} 15. f3 {[%clk 0:01:29]}  g5 {[%clk 0:01:42]} 16. Nc4 {[%clk 0:01:25]}  Ne8 {[%clk 0:01:35]} 17. a4 {[%clk 0:01:23]}  Ba6 {[%clk 0:01:33]} 18. Bf1 {[%clk 0:01:23]}  Bb7 {[%clk 0:01:20]} 19. Kf2 {[%clk 0:01:22]}  Ne5 {[%clk 0:01:18]} 20. Nxe5 {[%clk 0:01:20]}  Bxe5 {[%clk 0:01:19]} 21. Nc2 {[%clk 0:01:16]}  Nf6 {[%clk 0:01:16]} 22. Na3 {[%clk 0:01:11]}  Nh5 {[%clk 0:01:06]} 23. g4 {[%clk 0:01:02]}  Nf4 {[%clk 0:01:07]} 24. Nc4 {[%clk 0:00:59]}  Bc7 {[%clk 0:01:07]} 25. Rxd8+ {[%clk 0:00:16]}  Rxd8 {[%clk 0:01:00]} 26. a5 {[%clk 0:00:16]}  b5 {[%clk 0:01:00]} 27. a6 {[%clk 0:00:17]}  Ba8 {[%clk 0:00:53]} 28. Na3 {[%clk 0:00:16]}  b4 {[%clk 0:00:53]} 29. Nb5 {[%clk 0:00:11]}  Be5 {[%clk 0:00:41]} 30. Nxa7 {[%clk 0:00:07]}  bxc3 {[%clk 0:00:40]} 31. bxc3 {[%clk 0:00:08]}  Bxc3 {[%clk 0:00:40]} 32. Rc1 {[%clk 0:00:08]}  Bd4 {[%clk 0:00:36]} 33. Nb5 {[%clk 0:00:08]}  e5 {[%clk 0:00:24]} 34. Nxd4 {[%clk 0:00:07]}  cxd4 {[%clk 0:00:20]} 35. Bxf4 {[%clk 0:00:07]}  gxf4 {[%clk 0:00:19]} 36. Bc4 {[%clk 0:00:07]}  Rb8 {[%clk 0:00:13]} 37. Ra1 {[%clk 0:00:06]}  Rb2+ {[%clk 0:00:13]} 38. Ke1 {[%clk 0:00:05]}  Kg7 {[%clk 0:00:13]} 39. a7 {[%clk 0:00:05]}  Rc2 {[%clk 0:00:12]} 40. Bd5 {[%clk 0:00:05]}  Rc8 {[%clk 0:00:08]} 41. Kd2 {[%clk 0:00:04]}  Kf6 {[%clk 0:00:07]} 42. Kd3 {[%clk 0:00:05]}  Rc3+ {[%clk 0:00:07]} 43. Kd2 {[%clk 0:00:05]}  Rc8 {[%clk 0:00:07]} 44. Bxa8 {[%clk 0:00:05]}  Rxa8 {[%clk 0:00:08]} 45. Kd3 {[%clk 0:00:05]}  Kg5 {[%clk 0:00:08]} 46. Kc4 {[%clk 0:00:05]}  Kh4 {[%clk 0:00:09]} 47. Kd5 {[%clk 0:00:04]}  f6 {[%clk 0:00:09]} 48. Ke6 {[%clk 0:00:03]}  Kg3 {[%clk 0:00:09]} 49. Ra3 {[%clk 0:00:04]}  d3 {[%clk 0:00:05]} 50. Rxd3 {[%clk 0:00:03]}  Rxa7 {[%clk 0:00:06]} 51. Kxf6 {[%clk 0:00:04]}  Ra5 {[%clk 0:00:07]} 52. Kf5 {[%clk 0:00:04]}  Kxh3 {[%clk 0:00:07]} 53. Rd5 {[%clk 0:00:03]}  Ra3 {[%clk 0:00:06]} 54. Rxe5 {[%clk 0:00:03]}  Rxf3 {[%clk 0:00:06]} 55. Re6 {[%clk 0:00:02]}  Kg3 {[%clk 0:00:07]} 56. Rxh6 {[%clk 0:00:02]}  Re3 {[%clk 0:00:07]} 57. Rh1 {[%clk 0:00:01]}  f3 {[%clk 0:00:08]} 58. g5 {[%clk 0:00:01]}  f2 {[%clk 0:00:08]} 59. Rf1 {[%clk 0:00:01]}  Re1 {[%clk 0:00:04]} 60. Rxf2 {[%clk 0:00:01]}  Kxf2 {[%clk 0:00:05]} 61. g6 {[%clk 0:00:01]}  Ke3 {[%clk 0:00:05]} 62. g7 {[%clk 0:00:02]}  Rg1 {[%clk 0:00:05]} 63. Kf6 {[%clk 0:00:03]}  Kxe4 {[%clk 0:00:05]} 64. Kf7 {[%clk 0:00:03]}  Rxg7+ {[%clk 0:00:05]} 65. Kxg7 {[%clk 0:00:04]} 1/2-1/2


[Site "https://www.chess.com"]

[Event "Titled Tuesday Blitz May 9 Early 2023"]
[White "Mitrabha, Guha"]
[Black "Schmakel, Sam"]
[WhiteFideId "5057000"]
[BlackFideId "2039311"]
[WhiteElo "2507"]
[BlackElo "2356"]
[Result "1-0"]
[Round "06"]
[TimeControl "180+2"]
[Date "2023.05.09"]
[WhiteClock "0:00:41"]
[BlackClock "0:00:00"]

1. d4 {[%clk 0:03:00]}  d5 {[%clk 0:02:58]} 2. Nf3 {[%clk 0:02:58]}  e6 {[%clk 0:02:58]} 3. Bf4 {[%clk 0:02:58]}  c5 {[%clk 0:02:54]} 4. e3 {[%clk 0:02:59]}  Qb6 {[%clk 0:02:54]} 5. Nc3 {[%clk 0:02:51]}  Nf6 {[%clk 0:02:38]} 6. Nb5 {[%clk 0:02:49]}  Na6 {[%clk 0:02:38]} 7. c3 {[%clk 0:02:49]}  Be7 {[%clk 0:02:38]} 8. a4 {[%clk 0:02:39]}  O-O {[%clk 0:02:35]} 9. Bd3 {[%clk 0:02:40]}  c4 {[%clk 0:02:28]} 10. Be2 {[%clk 0:02:35]}  Bd7 {[%clk 0:02:28]} 11. b3 {[%clk 0:02:34]}  Bxb5 {[%clk 0:02:03]} 12. axb5 {[%clk 0:02:19]}  Nc7 {[%clk 0:02:03]} 13. bxc4 {[%clk 0:02:19]}  dxc4 {[%clk 0:02:01]} 14. Bxc4 {[%clk 0:02:18]}  Ncd5 {[%clk 0:01:54]} 15. Bg5 {[%clk 0:02:05]}  Nxc3 {[%clk 0:01:26]} 16. Qd3 {[%clk 0:01:54]}  Nce4 {[%clk 0:01:24]} 17. O-O {[%clk 0:01:53]}  Nxg5 {[%clk 0:01:15]} 18. Nxg5 {[%clk 0:01:44]}  Rfc8 {[%clk 0:01:14]} 19. Qb3 {[%clk 0:01:38]}  h6 {[%clk 0:00:56]} 20. Nf3 {[%clk 0:01:38]}  Ne4 {[%clk 0:00:52]} 21. Rfc1 {[%clk 0:01:32]}  Nd6 {[%clk 0:00:50]} 22. Bd3 {[%clk 0:01:29]}  a6 {[%clk 0:00:48]} 23. Rcb1 {[%clk 0:01:13]}  axb5 {[%clk 0:00:47]} 24. Rxa8 {[%clk 0:01:12]}  Rxa8 {[%clk 0:00:48]} 25. h3 {[%clk 0:01:10]}  Rc8 {[%clk 0:00:40]} 26. g3 {[%clk 0:00:53]}  h5 {[%clk 0:00:17]} 27. h4 {[%clk 0:00:49]}  g6 {[%clk 0:00:16]} 28. Kg2 {[%clk 0:00:48]}  Bf6 {[%clk 0:00:16]} 29. Bxb5 {[%clk 0:00:47]}  Nxb5 {[%clk 0:00:09]} 30. Qxb5 {[%clk 0:00:48]}  Qxb5 {[%clk 0:00:10]} 31. Rxb5 {[%clk 0:00:48]}  Rc7 {[%clk 0:00:11]} 32. Nd2 {[%clk 0:00:47]}  Kf8 {[%clk 0:00:11]} 33. Nb3 {[%clk 0:00:47]}  Ke7 {[%clk 0:00:05]} 34. Na5 {[%clk 0:00:47]}  Kd7 {[%clk 0:00:06]} 35. Rxb7 {[%clk 0:00:45]}  Rxb7 {[%clk 0:00:06]} 36. Nxb7 {[%clk 0:00:46]}  Be7 {[%clk 0:00:07]} 37. Na5 {[%clk 0:00:43]}  Kd6 {[%clk 0:00:06]} 38. Nc4+ {[%clk 0:00:43]}  Kd5 {[%clk 0:00:07]} 39. Ne5 {[%clk 0:00:44]}  Bf6 {[%clk 0:00:00]} 40. Nxf7 {[%clk 0:00:41]} 1-0


[Site "https://www.chess.com"]